bitfinex/quotes_BTCUSD_20250910
["timestamp","ask_amount","ask_price","bid_price","bid_amount"]
[1757529577598,4.956178,113540.0,113530.0,0.70790409]
[1757529577801,4.956178,113540.0,113530.0,0.85954409]
[1757529579434,4.956178,113540.0,113530.0,0.70790409]
[1757529579649,4.956178,113540.0,113530.0,0.85950409]
[1757529580495,4.956178,113540.0,113530.0,0.88248409]
[1757529580853,4.956178,113540.0,113530.0,0.90761067]
[1757529581054,4.956178,113540.0,113530.0,0.9867211]
[1757529583063,4.956178,113540.0,113530.0,0.90761067]
[1757529584007,4.956178,113540.0,113530.0,1.30761067]
[1757529586624,4.956178,113540.0,113530.0,1.15601067]
[1757529586857,4.956178,113540.0,113530.0,0.85952409]
[1757529591512,4.956178,113540.0,113530.0,0.70800409]
[1757529591722,4.956178,113540.0,113530.0,0.85948409]
[1757529598017,4.956178,113540.0,113530.0,0.85940409]
[1757529601160,4.956178,113540.0,113530.0,0.88327409]
[1757529601381,4.956178,113540.0,113530.0,1.25940409]
[1757529601932,4.956178,113540.0,113530.0,0.88327409]
[1757529602163,4.956178,113540.0,113530.0,1.10840067]
[1757529602356,4.952928,113540.0,113530.0,1.5875111]
[1757529604261,4.952928,113540.0,113530.0,1.5865111]
[1757529604476,4.952928,113540.0,113530.0,1.5885111]
[1757529604893,4.952928,113540.0,113530.0,1.5865111]
[1757529605095,4.952928,113540.0,113530.0,1.5875111]
[1757529605505,4.952928,113540.0,113530.0,1.5905111]
[1757529608756,4.952928,113540.0,113530.0,1.56140067]
[1757529609839,4.952928,113540.0,113530.0,1.56128067]
[1757529616244,4.952928,113540.0,113530.0,1.64034232]
[1757529617118,4.952928,113540.0,113530.0,1.48906232]
[1757529617337,4.952928,113540.0,113530.0,1.64022232]
[1757529621071,4.06499848,113540.0,113530.0,1.57840826]
[1757529621278,4.01429371,113540.0,113530.0,1.49934661]
[1757529621503,3.70207974,113540.0,113530.0,1.49934661]
[1757529621734,3.64978417,113540.0,113530.0,1.49934661]
[1757529621944,3.38461298,113540.0,113530.0,1.49934661]
[1757529622157,3.25597777,113540.0,113530.0,1.49934661]
[1757529622366,2.99501513,113540.0,113530.0,1.49934661]
[1757529622586,2.90471517,113540.0,113530.0,1.49934661]
[1757529622780,2.69618784,113540.0,113530.0,1.49934661]
[1757529623341,2.69618784,113540.0,113530.0,1.34818661]
[1757529623549,2.69618784,113540.0,113530.0,1.49930661]
[1757529627690,2.20374189,113540.0,113530.0,1.49930661]
[1757529628113,2.20374189,113540.0,113530.0,1.49922661]
[1757529630020,2.20374189,113540.0,113530.0,1.34818661]
[1757529630199,2.20374189,113540.0,113530.0,1.49922661]
[1757529630400,2.20374189,113540.0,113530.0,1.34818661]
[1757529630560,2.20374189,113540.0,113530.0,1.49918661]
[1757529634189,1.80472297,113540.0,113530.0,1.49918661]
[1757529634564,1.20786836,113540.0,113530.0,1.63201465]
[1757529634808,0.0001,113550.0,113540.0,1.04415595]
[1757529635027,0.0002,113560.0,113550.0,0.79126044]
[1757529635275,0.0002,113570.0,113560.0,0.94124493]
[1757529635492,0.07136132,113620.0,113580.0,1.09121391]
[1757529635746,0.09646132,113620.0,113590.0,0.17607183]
[1757529635956,0.07128226,113600.0,113590.0,0.29451624]
[1757529636216,0.07128226,113600.0,113590.0,0.84327535]
[1757529636425,0.00076972,113600.0,113590.0,0.84327535]
[1757529636625,0.00076972,113600.0,113590.0,0.86968902]
[1757529637823,0.00076972,113600.0,113590.0,0.86978902]
[1757529638281,0.00376972,113600.0,113590.0,0.86978902]
[1757529638509,0.00376972,113600.0,113590.0,0.93673354]
[1757529638720,0.00376972,113600.0,113590.0,0.93663354]
[1757529639761,0.00376972,113600.0,113590.0,0.93673354]
[1757529639970,0.00476972,113600.0,113590.0,0.93669354]
[1757529640399,0.00376972,113600.0,113590.0,0.93665354]
[1757529640615,0.00076972,113600.0,113590.0,0.93665354]
[1757529641050,0.00176972,113600.0,113590.0,0.93665354]
[1757529641922,0.00176972,113600.0,113590.0,0.91311354]
[1757529645004,0.00176972,113600.0,113590.0,0.76223354]
[1757529645313,0.00176972,113600.0,113590.0,0.91307354]
[1757529645565,0.00376972,113600.0,113590.0,0.50789354]
[1757529645775,0.13398782,113600.0,113590.0,0.84789354]
[1757529646038,0.31004415,113600.0,113590.0,0.43345819]
[1757529646243,0.46764225,113600.0,113590.0,0.43345819]
[1757529646456,0.46764225,113600.0,113590.0,0.02651367]
[1757529646665,0.02794972,113600.0,113590.0,0.2025855]
[1757529646872,0.02794972,113600.0,113590.0,0.2046955]
[1757529647079,0.20400605,113600.0,113590.0,0.02862367]
[1757529647284,0.33422415,113600.0,113590.0,0.02651367]
[1757529647697,0.33742415,113600.0,113590.0,0.02651367]
[1757529648466,0.20720605,113600.0,113590.0,0.02651367]
[1757529648662,0.33742415,113600.0,113590.0,0.02651367]
[1757529649654,0.16136782,113600.0,113590.0,0.02651367]
[1757529650117,0.16136782,113600.0,113590.0,0.2046955]
[1757529650118,0.00376972,113600.0,113590.0,0.2046955]
[1757529650321,0.00176972,113600.0,113590.0,0.2077655]
[1757529650738,0.00176972,113600.0,113590.0,0.2046955]
[1757529650739,0.00376972,113600.0,113590.0,0.2046955]
[1757529650970,0.00376972,113600.0,113590.0,0.2025855]
[1757529652218,0.18302605,113600.0,113590.0,0.3533455]
[1757529652427,0.17982605,113600.0,113590.0,0.3533455]
[1757529653306,0.03330981,113600.0,113590.0,0.17727367]
[1757529653526,0.03330981,113600.0,113590.0,0.3533455]
[1757529653748,0.20936614,113600.0,113590.0,0.3533455]
[1757529653949,0.20720605,113600.0,113590.0,0.17727367]
[1757529654135,0.20720605,113600.0,113590.0,0.02651367]
[1757529659695,0.46764225,113600.0,113590.0,0.02651367]
[1757529660059,0.33742415,113600.0,113590.0,0.02651367]
[1757529660262,0.33742415,113600.0,113590.0,0.00651367]
[1757529660425,0.33742415,113600.0,113590.0,0.0001]
[1757529660626,0.17607183,113590.0,113580.0,0.40679293]
[1757529660825,0.17607183,113590.0,113580.0,0.43321372]
[1757529660826,0.18038192,113590.0,113580.0,0.43321372]
[1757529661038,0.20776192,113590.0,113580.0,0.36652079]
[1757529661269,0.20560183,113590.0,113580.0,0.36652079]
[1757529661495,0.35632183,113590.0,113580.0,0.36652079]
[1757529661702,0.35732183,113590.0,113580.0,0.36652079]
[1757529663078,0.20660183,113590.0,113580.0,0.02652079]
[1757529663268,0.35732183,113590.0,113580.0,0.02652079]
[1757529663443,0.35420183,113590.0,113580.0,0.02652079]
[1757529664052,0.35732183,113590.0,113580.0,0.02652079]
[1757529666012,0.20348183,113590.0,113580.0,0.02652079]
[1757529666219,0.35728183,113590.0,113580.0,0.02652079]
[1757529669133,0.17611835,113560.0,113550.0,0.0001]
[1757529669344,0.74447816,113560.0,113550.0,0.0001]
[1757529669554,0.36077187,113560.0,113550.0,0.0001]
[1757529669758,0.77184807,113560.0,113550.0,0.0001]
[1757529669989,0.51141187,113560.0,113550.0,0.0001]
[1757529670204,0.64162997,113560.0,113550.0,0.0001]
[1757529670432,0.64572997,113560.0,113550.0,0.0001]
[1757529671784,0.64872997,113560.0,113550.0,0.0001]
[1757529672425,0.77894807,113560.0,113550.0,0.0001]
[1757529674062,0.79531423,113560.0,113550.0,0.0001]
[1757529680737,0.53487803,113560.0,113550.0,0.0001]
[1757529681132,0.79531423,113560.0,113550.0,0.0001]
[1757529686679,0.53487803,113560.0,113550.0,0.0001]
[1757529686910,0.79531423,113560.0,113550.0,0.0001]
[1757529689210,0.80144686,113560.0,113550.0,0.0001]
[1757529689786,0.65080726,113560.0,113550.0,0.0001]
[1757529690007,0.54097106,113560.0,113550.0,0.0001]
[1757529690188,0.80140726,113560.0,113550.0,0.0001]
[1757529690442,0.93192338,113560.0,113550.0,0.0001]
[1757529691425,0.94010353,113560.0,113550.0,0.0001]
[1757529693708,0.94010981,113560.0,113550.0,0.0001]
[1757529696867,0.94012821,113560.0,113550.0,0.0001]
[1757529697289,0.95902932,113560.0,113550.0,0.0001]
[1757529698685,1.22993751,113560.0,113550.0,0.0001]
[1757529698938,1.56993751,113560.0,113550.0,0.0001]
[1757529699195,0.17616489,113530.0,113520.0,0.0001]
[1757529699342,0.54684661,113530.0,113520.0,0.00024086]
[1757529699552,0.57435652,113530.0,113520.0,0.00024086]
[1757529700495,0.57445652,113530.0,113520.0,0.00024086]
[1757529700742,0.66198004,113530.0,113520.0,0.00024086]
[1757529700951,0.67022786,113530.0,113520.0,0.00024086]
[1757529701607,0.67122786,113530.0,113520.0,0.00024086]
[1757529701798,0.52070786,113530.0,113520.0,0.00024086]
[1757529702025,0.67322786,113530.0,113520.0,0.00024086]
[1757529702691,0.67322786,113530.0,113520.0,0.00014086]
[1757529704400,0.66500654,113530.0,113520.0,0.00014086]
[1757529707277,0.66496654,113530.0,113520.0,0.00014086]
[1757529707924,0.51448654,113530.0,113520.0,0.00014086]
[1757529708113,0.66496654,113530.0,113520.0,0.00014086]
[1757529709715,0.55064189,113530.0,113520.0,0.00014086]
[1757529709891,0.74613805,113530.0,113520.0,0.00014086]
[1757529710095,0.40016189,113530.0,113520.0,0.00014086]
[1757529710295,0.55060189,113530.0,113520.0,0.00014086]
[1757529710579,0.74609805,113530.0,113520.0,0.00014086]
[1757529712058,1.04257193,113530.0,113520.0,1e-08]
[1757529712283,0.71555303,113530.0,113520.0,1e-08]
[1757529712575,0.41375878,113530.0,113520.0,1e-08]
[1757529712800,0.38663038,113530.0,113520.0,1e-08]
[1757529713030,0.73056654,113530.0,113520.0,1e-08]
[1757529713241,0.73256654,113530.0,113520.0,1e-08]
[1757529713452,0.73556654,113530.0,113520.0,1e-08]
[1757529713846,0.73256654,113530.0,113520.0,1e-08]
[1757529714073,0.73456654,113530.0,113520.0,1e-08]
[1757529714502,0.73156654,113530.0,113520.0,1e-08]
[1757529714922,0.73356654,113530.0,113520.0,1e-08]
[1757529717101,0.82109772,113530.0,113520.0,1e-08]
[1757529717793,0.81493191,113530.0,113520.0,1e-08]
[1757529718891,0.53190457,113530.0,113520.0,1e-08]
[1757529719107,0.72740073,113530.0,113520.0,1e-08]
[1757529719344,0.38146457,113530.0,113520.0,1e-08]
[1757529719549,0.26632105,113530.0,113520.0,0.18140041]
[1757529719757,0.24059616,113530.0,113520.0,0.18140041]
[1757529719965,0.24059616,113530.0,113520.0,0.17618041]
[1757529720168,0.17295616,113530.0,113520.0,0.17618041]
[1757529720403,0.35128114,113530.0,113520.0,0.17618041]
[1757529720611,0.35206105,113530.0,113520.0,0.17618041]
[1757529720871,0.37591105,113530.0,113520.0,0.17618041]
[1757529721113,0.64616428,113530.0,113520.0,1e-08]
[1757529721315,0.7336878,113530.0,113520.0,1e-08]
[1757529721534,0.71732164,113530.0,113520.0,1e-08]
[1757529723294,0.64256457,113530.0,113520.0,0.17618041]
[1757529723731,0.35950489,113530.0,113520.0,0.17618041]
[1757529724970,0.20910489,113530.0,113520.0,0.17618041]
[1757529725212,0.35950489,113530.0,113520.0,0.17618041]
[1757529726463,0.55500105,113530.0,113520.0,0.17618041]
[1757529726744,0.60023219,113530.0,113520.0,1e-08]
[1757529727240,0.55500105,113530.0,113520.0,1e-08]
[1757529727443,0.64252457,113530.0,113520.0,1e-08]
[1757529730915,0.0041,113530.0,113520.0,0.18140041]
[1757529731091,0.0041,113530.0,113520.0,1.32436872]
[1757529731319,0.0041,113530.0,113520.0,1.72216647]
[1757529731554,0.0041,113530.0,113520.0,1.73071558]
[1757529732006,0.0021,113530.0,113520.0,1.75714498]
[1757529732246,0.0021,113530.0,113520.0,1.82337775]
[1757529732473,0.0021,113530.0,113520.0,1.7443161]
[1757529732904,0.002,113530.0,113520.0,1.7453161]
[1757529733350,0.0001,113550.0,113540.0,0.17614937]
[1757529733625,0.0001,113550.0,113540.0,0.17835123]
[1757529733846,0.07477263,113550.0,113540.0,0.17614937]
[1757529734082,0.07477263,113550.0,113540.0,0.18136937]
[1757529734316,0.00426009,113550.0,113540.0,0.18136937]
[1757529734537,0.00426009,113550.0,113540.0,0.17819937]
[1757529735191,0.00426009,113550.0,113540.0,0.17919937]
[1757529735435,0.00426009,113550.0,113540.0,0.18236937]
[1757529735810,0.18039395,113550.0,113540.0,0.18336937]
[1757529736244,0.33075395,113550.0,113540.0,0.18336937]
[1757529736449,0.32859386,113550.0,113540.0,0.18336937]
[1757529736616,0.32859386,113550.0,113540.0,0.17814937]
[1757529736826,0.35538386,113550.0,113540.0,0.002]
[1757529737051,0.55088002,113550.0,113540.0,0.002]
[1757529737518,0.63840354,113550.0,113530.0,0.0001]
[1757529737724,0.39765562,113540.0,113530.0,0.0001]
[1757529737926,0.19999937,113540.0,113530.0,0.0001]
[1757529738124,0.20199937,113540.0,113530.0,0.0001]
[1757529738344,0.20209937,113540.0,113530.0,0.0001]
[1757529738672,0.20503937,113540.0,113530.0,0.0001]
[1757529739745,0.20209937,113540.0,113530.0,0.0001]
[1757529739948,0.20209937,113540.0,113530.0,0.17626489]
[1757529741462,0.20209937,113540.0,113530.0,0.0001]
[1757529741668,0.20503937,113540.0,113530.0,0.0001]
[1757529742225,0.20209937,113540.0,113530.0,0.0001]
[1757529743035,0.35237937,113540.0,113530.0,0.0001]
[1757529743462,0.35237937,113540.0,113530.0,0.17626489]
[1757529743822,0.20209937,113540.0,113530.0,0.17626489]
[1757529744038,0.35237937,113540.0,113530.0,0.17626489]
[1757529745110,0.35237937,113540.0,113530.0,0.0001]
[1757529745560,0.35237937,113540.0,113530.0,0.17626489]
[1757529745771,0.55107553,113540.0,113530.0,0.0001]
[1757529746202,0.35237937,113540.0,113530.0,0.17626489]
[1757529746666,0.35557937,113540.0,113530.0,0.0001]
[1757529746886,0.55107553,113540.0,113530.0,0.0001]
[1757529747788,0.9155785,113540.0,113530.0,0.0001]
[1757529748555,0.83409521,113540.0,113530.0,0.0001]
[1757529748772,0.44310289,113540.0,113530.0,0.0001]
[1757529748991,0.83509521,113540.0,113530.0,0.0001]
[1757529749234,0.63959905,113540.0,113530.0,0.0001]
[1757529750046,0.64059905,113540.0,113530.0,0.0001]
[1757529750248,0.87548743,113540.0,113530.0,0.0001]
[1757529750454,0.74524137,113540.0,113530.0,0.0001]
[1757529750658,0.61686824,113540.0,113530.0,0.0001]
[1757529751085,0.61886824,113540.0,113530.0,0.0001]
[1757529752093,0.46858824,113540.0,113530.0,0.0001]
[1757529752268,0.61882824,113540.0,113530.0,0.0001]
[1757529754607,0.48845511,113540.0,113530.0,0.0001]
[1757529754873,0.61882824,113540.0,113530.0,0.0001]
[1757529756887,0.48845511,113540.0,113530.0,0.0001]
[1757529757309,0.61882824,113540.0,113530.0,0.0001]
[1757529759582,0.46858824,113540.0,113530.0,0.0001]
[1757529759727,0.61882824,113540.0,113530.0,0.0001]
[1757529760714,0.29682289,113540.0,113530.0,0.0001]
[1757529760918,0.44702289,113540.0,113530.0,0.0001]
[1757529761124,0.57739602,113540.0,113530.0,0.0001]
[1757529761800,0.26777289,113540.0,113530.0,0.0001]
[1757529762010,0.33044937,113540.0,113530.0,0.18143489]
[1757529762217,0.33260937,113540.0,113530.0,0.18143489]
[1757529762450,0.18240937,113540.0,113530.0,0.18143489]
[1757529762901,0.33260937,113540.0,113530.0,0.18143489]
[1757529763107,0.18040937,113540.0,113530.0,0.18143489]
[1757529763312,0.32860937,113540.0,113530.0,0.18143489]
[1757529763732,0.17940937,113540.0,113530.0,0.18143489]
[1757529763930,0.33176946,113540.0,113530.0,0.18143489]
[1757529764240,0.32960937,113540.0,113530.0,0.18143489]
[1757529764469,0.33060937,113540.0,113530.0,0.18143489]
[1757529765100,0.0021,113540.0,113530.0,0.18143489]
[1757529765320,0.0021,113540.0,113530.0,0.52143489]
[1757529765963,0.0021,113540.0,113530.0,0.54607489]
[1757529766380,0.0011,113540.0,113530.0,0.54607489]
[1757529766567,0.0011,113540.0,113530.0,0.54597489]
[1757529766694,0.0001,113540.0,113530.0,0.54597489]
[1757529770911,0.0001,113540.0,113530.0,0.69613489]
[1757529771340,0.0001,113540.0,113530.0,0.54597489]
[1757529771561,0.17840946,113540.0,113530.0,0.67149489]
[1757529771808,0.18056946,113540.0,113530.0,0.51832489]
[1757529773113,0.20739946,113540.0,113530.0,0.17616489]
[1757529773322,0.20523937,113540.0,113520.0,0.32644]
[1757529773533,0.00216009,113530.0,113520.0,0.66945]
[1757529773742,0.00216009,113530.0,113520.0,0.67161]
[1757529775268,0.00226009,113530.0,113520.0,0.67161]
[1757529775508,0.00226009,113530.0,113520.0,0.52145]
[1757529777507,0.00226009,113530.0,113520.0,0.52135]
[1757529778587,0.0001,113530.0,113520.0,0.52135]
[1757529778804,0.0001,113530.0,113520.0,0.60887352]
[1757529779011,0.0001,113530.0,113520.0,0.63222352]
[1757529780662,0.0001,113530.0,113520.0,1.03222352]
[1757529781676,0.0001,113530.0,113520.0,0.63222352]
[1757529784618,0.0001,113530.0,113520.0,0.69540145]
[1757529784816,0.0001,113530.0,113520.0,1.09540145]
[1757529786330,0.0001,113550.0,113540.0,0.17614937]
[1757529786525,0.0001,113550.0,113540.0,0.75595475]
[1757529786728,0.0001,113550.0,113540.0,0.75578289]
[1757529786929,0.0001,113550.0,113540.0,0.75899289]
[1757529787577,0.0001,113550.0,113540.0,0.60891289]
[1757529787773,0.0001,113550.0,113540.0,0.75899289]
[1757529787994,0.0001,113550.0,113540.0,0.75999289]
[1757529788444,0.0001,113550.0,113540.0,0.76095289]
[1757529789907,0.0001,113550.0,113540.0,0.8274844]
[1757529794980,0.0001,113550.0,113540.0,0.8508344]
[1757529795195,0.0001,113550.0,113540.0,0.91409932]
[1757529797023,0.0001,113550.0,113540.0,0.91419932]
[1757529798118,0.0001,113550.0,113540.0,0.91415932]
[1757529798836,0.0001,113550.0,113540.0,0.89080932]
[1757529799286,0.0001,113550.0,113540.0,0.8275444]
[1757529799720,0.0001,113550.0,113540.0,0.6775444]
[1757529799959,0.0001,113550.0,113540.0,0.8275444]
[1757529800178,0.0001,113550.0,113540.0,0.76101289]
[1757529800650,0.0001,113550.0,113540.0,0.63744108]
[1757529800872,0.0001,113550.0,113540.0,0.78740108]
[1757529802679,0.0001,113550.0,113540.0,1.18740108]
[1757529805759,0.0001,113550.0,113540.0,1.03744108]
[1757529805988,0.0001,113550.0,113540.0,0.78740108]
[1757529805989,0.00218,113550.0,113540.0,0.78740108]
[1757529806235,0.0001,113550.0,113540.0,0.78740108]
[1757529806688,0.0001,113550.0,113540.0,0.63744108]
[1757529806925,0.30868699,113550.0,113540.0,0.20670756]
[1757529807153,0.20626386,113550.0,113540.0,0.20467756]
[1757529807380,0.20626386,113550.0,113540.0,0.17824937]
[1757529807571,0.20321386,113550.0,113540.0,0.17814937]
[1757529807815,0.20321386,113550.0,113540.0,0.17714937]
[1757529809051,0.20321386,113550.0,113540.0,0.17614937]
[1757529810694,0.17831386,113550.0,113540.0,0.18149937]
[1757529810929,0.00226009,113550.0,113540.0,0.18149937]
[1757529811136,0.0001,113550.0,113540.0,0.18149937]
[1757529813045,0.17623386,113550.0,113540.0,0.18149937]
[1757529813663,0.0001,113550.0,113540.0,0.18149937]
[1757529816513,0.00226009,113550.0,113540.0,0.18149937]
[1757529821249,0.18047395,113550.0,113540.0,0.33137937]
[1757529821475,0.18047395,113550.0,113540.0,0.17614937]
[1757529821703,0.37895232,113550.0,113530.0,0.26915728]
[1757529821923,0.37895232,113550.0,113540.0,0.17614937]
[1757529821924,0.20626386,113550.0,113540.0,0.17614937]
[1757529822575,0.20321386,113550.0,113540.0,0.17614937]
[1757529824151,0.20321386,113550.0,113530.0,0.41899728]
[1757529824368,0.20626386,113550.0,113540.0,0.17614937]
[1757529825019,0.20321386,113550.0,113540.0,0.17614937]
[1757529825497,0.20321386,113550.0,113530.0,0.41999728]
[1757529825716,0.20321386,113550.0,113530.0,0.42099728]
[1757529826179,0.35305386,113550.0,113530.0,0.41999728]
[1757529826605,0.35305386,113550.0,113530.0,0.41899728]
[1757529826855,0.35305386,113550.0,113540.0,0.17614937]
[1757529827069,0.35305386,113550.0,113530.0,0.61899728]
[1757529827279,0.35305386,113550.0,113530.0,0.61999728]
[1757529827511,0.35305386,113550.0,113540.0,0.17614937]
[1757529828357,0.35305386,113550.0,113530.0,0.61999728]
[1757529828568,0.35305386,113550.0,113530.0,0.61899728]
[1757529828775,0.35305386,113550.0,113530.0,1.01899728]
[1757529828986,0.35610386,113550.0,113530.0,0.61574728]
[1757529829411,0.35610386,113550.0,113530.0,1.01574728]
[1757529829681,0.35610386,113550.0,113530.0,1.01995728]
[1757529829893,0.35610386,113550.0,113530.0,0.61995728]
[1757529830101,0.35610386,113550.0,113530.0,0.62095728]
[1757529830533,0.35610386,113550.0,113530.0,1.02095728]
[1757529832081,0.17614937,113540.0,113530.0,1.21117133]
[1757529832301,0.17614937,113540.0,113530.0,1.35776133]
[1757529832490,0.17822937,113540.0,113530.0,1.29449641]
[1757529832746,0.17822937,113540.0,113530.0,0.89449641]
[1757529832936,0.17822937,113540.0,113530.0,0.89349641]
[1757529833154,0.17822937,113540.0,113530.0,0.89449641]
[1757529833421,0.17822937,113540.0,113530.0,0.89349641]
[1757529833627,0.17832937,113540.0,113530.0,0.89563641]
[1757529833879,0.17832937,113540.0,113530.0,0.89884641]
[1757529834116,0.17832937,113540.0,113530.0,0.89984641]
[1757529834352,0.0001,113540.0,113530.0,0.89984641]
[1757529836116,0.0001,113540.0,113530.0,0.89974641]
[1757529836564,0.0001,113540.0,113530.0,0.96301133]
[1757529836782,0.17624937,113540.0,113530.0,0.96301133]
[1757529838551,0.0001,113540.0,113530.0,0.96301133]
[1757529838949,0.17624937,113540.0,113530.0,0.96301133]
[1757529840407,0.17624937,113540.0,113530.0,0.81321133]
[1757529840408,0.17830937,113540.0,113530.0,0.81321133]
[1757529840621,0.17830937,113540.0,113530.0,0.96297133]
[1757529841129,0.17624937,113540.0,113530.0,0.96297133]
[1757529841324,0.18046946,113540.0,113530.0,0.63169644]
[1757529841578,0.17830937,113540.0,113530.0,0.06526492]
[1757529841786,0.18343946,113540.0,113530.0,0.002]
[1757529842005,0.20400937,113540.0,113530.0,0.002]
[1757529842219,0.39943774,113540.0,113530.0,0.001]
[1757529842861,0.4719809,113540.0,113530.0,0.001]
[1757529843069,0.39943774,113540.0,113530.0,0.001]
[1757529843512,0.17616489,113530.0,113520.0,1e-08]
[1757529843718,0.32804498,113530.0,113520.0,1e-08]
[1757529843925,0.17822489,113530.0,113520.0,1e-08]
[1757529844141,0.33010498,113530.0,113520.0,0.17618041]
[1757529844372,0.32794489,113530.0,113520.0,0.17618041]
[1757529844599,0.32794489,113530.0,113520.0,1e-08]
[1757529844838,0.32804489,113530.0,113520.0,1e-08]
[1757529845914,0.32804489,113530.0,113520.0,0.17618041]
[1757529846159,0.32804489,113530.0,113520.0,1e-08]
[1757529846831,0.32804489,113530.0,113520.0,0.17618041]
[1757529847041,0.32804489,113530.0,113520.0,1e-08]
[1757529848316,0.32804489,113530.0,113520.0,0.17618041]
[1757529849356,0.32804489,113530.0,113520.0,1e-08]
[1757529849563,0.32804489,113530.0,113520.0,0.17618041]
[1757529853225,0.32800489,113530.0,113520.0,0.18156041]
[1757529854945,0.32800489,113530.0,113520.0,0.17834041]
[1757529855410,0.17832489,113530.0,113520.0,0.18156041]
[1757529855626,0.32800489,113530.0,113520.0,0.18156041]
[1757529856711,0.32796489,113530.0,113520.0,0.18156041]
[1757529857782,0.17832489,113530.0,113520.0,0.18156041]
[1757529857993,0.32796489,113530.0,113520.0,0.18156041]
[1757529860681,0.32796489,113530.0,113520.0,0.20799652]
[1757529863382,0.0001,113530.0,113520.0,0.20799652]
[1757529863590,0.0001,113530.0,113520.0,0.23202652]
[1757529864423,0.0001,113530.0,113520.0,0.65955004]
[1757529865275,0.15186009,113540.0,113530.0,0.17616489]
[1757529865498,0.15186009,113540.0,113530.0,0.17933489]
[1757529865705,0.15186009,113540.0,113530.0,0.18142489]
[1757529866434,0.00226009,113540.0,113530.0,0.18142489]
[1757529866642,0.00226009,113540.0,113530.0,0.20785741]
[1757529868346,0.00226009,113540.0,113530.0,0.35745741]
[1757529868979,0.00440009,113540.0,113530.0,0.35215741]
[1757529869381,0.18054946,113540.0,113530.0,0.20259741]
[1757529869604,0.00440009,113540.0,113530.0,0.20259741]
[1757529870013,0.00440009,113540.0,113530.0,0.20468741]
[1757529870291,0.00440009,113540.0,113530.0,0.20785741]
[1757529871179,0.00226009,113540.0,113530.0,0.20785741]
[1757529876085,0.18054946,113540.0,113530.0,0.35420741]
[1757529876313,0.18054946,113540.0,113530.0,0.35211741]
[1757529876552,0.20678946,113540.0,113530.0,0.35211741]
[1757529876770,0.20462937,113540.0,113530.0,0.35211741]
[1757529876993,0.20462937,113540.0,113530.0,0.02643252]
[1757529877484,0.17616489,113530.0,113520.0,0.66579491]
[1757529877702,0.18046498,113530.0,113520.0,0.69223032]
[1757529878392,0.18056498,113530.0,113520.0,0.69223032]
[1757529878904,0.18375498,113530.0,113520.0,0.02753542]
[1757529879167,0.35416489,113530.0,113520.0,0.02753542]
[1757529879594,0.35416489,113530.0,113520.0,0.02653542]
[1757529880036,0.35097489,113530.0,113520.0,0.02653542]
[1757529880501,0.35097489,113530.0,113520.0,0.02753542]
[1757529880708,0.35097489,113530.0,113520.0,0.02653542]
[1757529881367,0.32792489,113530.0,113520.0,0.02653542]
[1757529881608,0.32792489,113530.0,113520.0,0.02862542]
[1757529881835,0.32792489,113530.0,113520.0,0.02653542]
[1757529882384,0.17840489,113530.0,113520.0,0.02653542]
[1757529882672,0.32790498,113530.0,113520.0,0.03179542]
[1757529882918,0.32574489,113530.0,113520.0,0.03179542]
[1757529883128,0.32788489,113530.0,113520.0,0.02653542]
[1757529883329,0.33107489,113530.0,113520.0,0.02653542]
[1757529883542,0.32788489,113530.0,113520.0,0.02653542]
[1757529883755,0.32788489,113530.0,113520.0,0.20797582]
[1757529883966,0.32574489,113530.0,113520.0,0.20797582]
[1757529884178,0.32574489,113530.0,113520.0,0.03179542]
[1757529884435,0.32788489,113530.0,113520.0,0.02862542]
[1757529885098,0.35412489,113530.0,113520.0,0.02653542]
[1757529885557,0.32788489,113530.0,113520.0,0.04415542]
[1757529885770,0.32788489,113530.0,113520.0,0.02653542]
[1757529885987,0.20464489,113530.0,113520.0,0.02653542]
[1757529886202,0.35412489,113530.0,113520.0,0.02653542]
[1757529886932,0.20464489,113530.0,113520.0,0.02653542]
[1757529887144,0.32888489,113530.0,113520.0,0.02653542]
[1757529887881,0.32888489,113530.0,113520.0,0.03179542]
[1757529888147,0.32988489,113530.0,113520.0,0.03179542]
[1757529889004,0.18040489,113530.0,113520.0,0.20797582]
[1757529889207,0.32984489,113530.0,113520.0,0.20797582]
[1757529889824,0.32984489,113530.0,113520.0,0.03179542]
[1757529893179,0.33303489,113530.0,113520.0,0.02653542]
[1757529893391,0.53730928,113530.0,113520.0,0.02653542]
[1757529893855,0.40700332,113530.0,113520.0,0.00010001]
[1757529895393,0.53730928,113530.0,113520.0,0.00010001]
[1757529895602,0.53730928,113530.0,113520.0,1e-08]
[1757529897033,0.6248328,113530.0,113520.0,1e-08]
[1757529898163,0.75513876,113530.0,113520.0,1e-08]
[1757529898620,0.7815813,113530.0,113520.0,1e-08]
[1757529898834,0.79798707,113530.0,113520.0,1e-08]
[1757529899057,1.16311365,113530.0,113520.0,1e-08]
[1757529899268,1.16926563,113530.0,113520.0,1e-08]
[1757529899753,1.16826563,113530.0,113520.0,1e-08]
[1757529900013,1.21926563,113530.0,113520.0,1e-08]
[1757529900260,1.06882563,113530.0,113520.0,1e-08]
[1757529900528,1.21722563,113530.0,113520.0,1e-08]
[1757529900781,1.22422563,113530.0,113520.0,1e-08]
[1757529901457,1.13534973,113530.0,113520.0,1e-08]
[1757529901692,1.28474973,113530.0,113520.0,1e-08]
[1757529901902,1.13534973,113530.0,113520.0,1e-08]
[1757529902127,1.03776769,113530.0,113520.0,1e-08]
[1757529902356,0.88836769,113530.0,113520.0,1e-08]
[1757529902603,1.03776769,113530.0,113520.0,1e-08]
[1757529904613,1.16807365,113530.0,113520.0,1e-08]
[1757529907959,1.16804997,113530.0,113520.0,1e-08]
[1757529908426,1.17419286,113530.0,113520.0,1e-08]
[1757529909535,1.02479286,113530.0,113520.0,1e-08]
[1757529909834,1.17415286,113530.0,113520.0,1e-08]
[1757529911714,1.17414492,113530.0,113520.0,1e-08]
[1757529913158,0.764173,113530.0,113520.0,1e-08]
[1757529913367,1.17410492,113530.0,113520.0,1e-08]
[1757529914608,1.02478492,113530.0,113520.0,1e-08]
[1757529914817,1.17410492,113530.0,113520.0,1e-08]
[1757529915029,0.913493,113530.0,113520.0,1e-08]
[1757529915245,1.17410492,113530.0,113520.0,1e-08]
[1757529919052,1.40441088,113530.0,113520.0,1e-08]
[1757529919255,1.43607388,113530.0,113520.0,1e-08]
[1757529919928,1.45974127,113530.0,113520.0,1e-08]
[1757529920610,1.31042127,113530.0,113520.0,1e-08]
[1757529920843,1.45970127,113530.0,113520.0,1e-08]
[1757529922210,1.55242127,113530.0,113520.0,1e-08]
[1757529922927,1.27283531,113530.0,113520.0,1e-08]
[1757529923148,1.42211531,113530.0,113520.0,1e-08]
[1757529923369,1.27283531,113530.0,113520.0,1e-08]
[1757529923583,1.42211531,113530.0,113520.0,1e-08]